{"text_format":"1","workbook":"xlsx","n_sheets":4,"sheets":["Main","Samir Fouad","Omar Nagy","Said Reda"],"not_rendered":{"charts":0,"images":0,"macros":1,"external_links":0,"defined_names":2,"comments":0,"pivot_tables":0},"unopened":[],"bounds":{"document_bytes":16777216,"sheet_cells":100000,"rows_first":2000,"rows_last":500,"rows_between":2000,"halvings":0,"cell_chars":16384,"cell_head_chars":4096},"cells_cut":0,"cells_raw":0,"read":"whole","date_system":"1900"}

{"sheet":"Main","index":0,"n_rows":224,"n_cols":43,"rows_kept":224,"cut":false,"hidden":false,"merged":[[0,35,0,42],[223,35,223,40],[0,0,0,2],[0,3,0,25],[0,26,0,30],[0,32,0,34]]}
["Participating",null,null,"Ticket",null,null,null,null,null,null,null,null,null,null,null,null,null,null,null,null,null,null,null,null,null,null,"Prices",null,null,null,null,"Codes","Cancel",null,null,"Collection"]
["Adl","Chd","Baby","Muh Kullanıcı","Muhasebe Tarih","Zarf","Accounting","Ödeme Beklenen","Sale Type","SlipNo","Slip Tutarı","Free","Tour Name","Voucher","Tour Date","Guide Name","Customer Package","Packet","Colection Control","Hotel","Suppliers","Sale Date","Trans Region Name","Remark","Lock","Ticket No","Tour Price","Discount","Ekstra Price","Net Amount","Collection",null,"Adl","Chd","Baby","Date","Process","Type","Receipt No","Curr","Exchange","Amount","Remark"]
[null,null,null,null,null,null,null,null,null,null,null,null,null,null,null,"Said Reda",null,null,null,null,null,null,null,null,null,1000055,null,null,null,195]
[null,null,null,null,null,null,null,null,null,null,null,null,null,null,null,"Said Reda",null,null,null,null,null,null,null,null,null,1000057,null,null,null,60]
[null,null,null,null,null,null,null,null,null,null,null,null,null,null,null,"Said Reda",null,null,null,null,null,null,null,null,null,1000058,null,null,null,70]
[null,null,null,null,null,null,null,null,null,null,null,null,"Shopping",null,null,"Said Reda",null,null,null,null,null,null,null,null,null,1000059,null,null,null,0]
[null,null,null,null,null,null,null,null,null,null,null,null,null,null,null,"Said Reda",null,null,null,null,null,null,null,null,null,1000060,null,null,null,160]
[null,null,null,null,null,null,null,null,null,null,null,null,null,null,null,"Said Reda",null,null,null,null,null,null,null,null,null,1000061,null,null,null,110]
[null,null,null,null,null,null,null,null,null,null,null,null,null,null,null,"Said Reda",null,null,null,null,null,null,null,null,null,1000062,null,null,null,60]
[null,null,null,null,null,null,null,null,null,null,null,null,"Shopping",null,null,"Said Reda",null,null,null,null,null,null,null,null,null,1000063,null,null,null,0]
[null,null,null,null,null,null,null,null,null,null,null,null,null,null,null,"Said Reda",null,null,null,null,null,null,null,null,null,1000064,null,null,null,80]
[null,null,null,null,null,null,null,null,null,null,null,null,null,null,null,"Said Reda",null,null,null,null,null,null,null,null,null,1000065,null,null,null,60]
[null,null,null,null,null,null,null,null,null,null,null,null,null,null,null,"Said Reda",null,null,null,null,null,null,null,null,null,1000066,null,null,null,75]
[null,null,null,null,null,null,null,null,null,null,null,null,"Shopping",null,null,"Said Reda",null,null,null,null,null,null,null,null,null,1000067,null,null,null,0]
[null,null,null,null,null,null,null,null,null,null,null,null,"Shopping",null,null,"Said Reda",null,null,null,null,null,null,null,null,null,1000069,null,null,null,0]
[null,null,null,null,null,null,null,null,null,null,null,null,"Shopping",null,null,"Said Reda",null,null,null,null,null,null,null,null,null,1000070,null,null,null,0]
[null,null,null,null,null,null,null,null,null,null,null,null,null,null,null,"Said Reda",null,null,null,null,null,null,null,null,null,1000072,null,null,null,60]
[null,null,null,null,null,null,null,null,null,null,null,null,"Shopping",null,null,"Said Reda",null,null,null,null,null,null,null,null,null,1000073,null,null,null,0]
[null,null,null,null,null,null,null,null,null,null,null,null,"Shopping",null,null,"Said Reda",null,null,null,null,null,null,null,null,null,1000074,null,null,null,0]
[null,null,null,null,null,null,null,null,null,null,null,null,null,null,null,"Said Reda",null,null,null,null,null,null,null,null,null,1000075,null,null,null,70]
[null,null,null,null,null,null,null,null,null,null,null,null,null,null,null,"Said Reda",null,null,null,null,null,null,null,null,null,1000077,null,null,null,90]
[null,null,null,null,null,null,null,null,null,null,null,null,null,null,null,"Said Reda",null,null,null,null,null,null,null,null,null,1000078,null,null,null,200]
[null,null,null,null,null,null,null,null,null,null,null,null,null,null,null,"Said Reda",null,null,null,null,null,null,null,null,null,1000079,null,null,null,100]
[null,null,null,null,null,null,null,null,null,null,null,null,null,null,null,"Said Reda",null,null,null,null,null,null,null,null,null,1000080,null,null,null,60]
[null,null,null,null,null,null,null,null,null,null,null,null,null,null,null,"Said Reda",null,null,null,null,null,null,null,null,null,1000081,null,null,null,160]
[null,null,null,null,null,null,null,null,null,null,null,null,"Shopping",null,null,"Said Reda",null,null,null,null,null,null,null,null,null,1000082,null,null,null,0]
[null,null,null,null,null,null,null,null,null,null,null,null,null,null,null,"Said Reda",null,null,null,null,null,null,null,null,null,1000083,null,null,null,80]
[null,null,null,null,null,null,null,null,null,null,null,null,null,null,null,"Samir Fouad",null,null,null,null,null,null,null,null,null,1000217,null,null,null,110]
[null,null,null,null,null,null,null,null,null,null,null,null,null,null,null,"Samir Fouad",null,null,null,null,null,null,null,null,null,1000218,null,null,null,60]
[null,null,null,null,null,null,null,null,null,null,null,null,null,null,null,"Samir Fouad",null,null,null,null,null,null,null,null,null,1000219,null,null,null,110]
[null,null,null,null,null,null,null,null,null,null,null,null,null,null,null,"Samir Fouad",null,null,null,null,null,null,null,null,null,1000220,null,null,null,60]
[null,null,null,null,null,null,null,null,null,null,null,null,null,null,null,"Samir Fouad",null,null,null,null,null,null,null,null,null,1000223,null,null,null,110]
[null,null,null,null,null,null,null,null,null,null,null,null,null,null,null,"Samir Fouad",null,null,null,null,null,null,null,null,null,1000224,null,null,null,60]
[null,null,null,null,null,null,null,null,null,null,null,null,null,null,null,"Samir Fouad",null,null,null,null,null,null,null,null,null,1000226,null,null,null,70]
[null,null,null,null,null,null,null,null,null,null,null,null,"20 $ Discount",null,null,"Samir Fouad",null,null,null,null,null,null,null,null,null,1000228,null,null,null,110]
[null,null,null,null,null,null,null,null,null,null,null,null,"10 $ Discount",null,null,"Samir Fouad",null,null,null,null,null,null,null,null,null,1000229,null,null,null,50]
[null,null,null,null,null,null,null,null,null,null,null,null,null,null,null,"Samir Fouad",null,null,null,null,null,null,null,null,null,1000233,null,null,null,30]
[null,null,null,null,null,null,null,null,null,null,null,null,"10 $ Discount",null,null,"Samir Fouad",null,null,null,null,null,null,null,null,null,1000234,null,null,null,60]
[null,null,null,null,null,null,null,null,null,null,null,null,"10 $ Discount",null,null,"Samir Fouad",null,null,null,null,null,null,null,null,null,1000238,null,null,null,60]
[null,null,null,null,null,null,null,null,null,null,null,null,"Shopping",null,null,"Samir Fouad",null,null,null,null,null,null,null,null,null,1000239,null,null,null,0]
[null,null,null,null,null,null,null,null,null,null,null,null,"5 $ Discount",null,null,"Samir Fouad",null,null,null,null,null,null,null,null,null,1000240,null,null,null,25]
[null,null,null,null,null,null,null,null,null,null,null,null,null,null,null,"Samir Fouad",null,null,null,null,null,null,null,null,null,1000241,null,null,null,30]
[null,null,null,null,null,null,null,null,null,null,null,null,null,null,null,"Samir Fouad",null,null,null,null,null,null,null,null,null,1000242,null,null,null,110]
[null,null,null,null,null,null,null,null,null,null,null,null,"Shopping",null,null,"Samir Fouad",null,null,null,null,null,null,null,null,null,1000243,null,null,null,0]
[null,null,null,null,null,null,null,null,null,null,null,null,null,null,null,"Samir Fouad",null,null,null,null,null,null,null,null,null,1000244,null,null,null,160]
[null,null,null,null,null,null,null,null,null,null,null,null,"Shopping",null,null,"Samir Fouad",null,null,null,null,null,null,null,null,null,1000245,null,null,null,0]
[null,null,null,null,null,null,null,null,null,null,null,null,null,null,null,"Samir Fouad",null,null,null,null,null,null,null,null,null,1000247,null,null,null,80]
[null,null,null,null,null,null,null,null,null,null,null,null,"Shopping",null,null,"Samir Fouad",null,null,null,null,null,null,null,null,null,1000248,null,null,null,0]
[null,null,null,null,null,null,null,null,null,null,null,null,"Shopping",null,null,"Samir Fouad",null,null,null,null,null,null,null,null,null,1000249,null,null,null,0]
[null,null,null,null,null,null,null,null,null,null,null,null,null,null,null,"Samir Fouad",null,null,null,null,null,null,null,null,null,1000250,null,null,null,100]
[null,null,null,null,null,null,null,null,null,null,null,null,null,null,null,"Omar Nagy",null,null,null,null,null,null,null,null,null,1000411,null,null,null,55]
[null,null,null,null,null,null,null,null,null,null,null,null,null,null,null,"Omar Nagy",null,null,null,null,null,null,null,null,null,1000413,null,null,null,220]
[null,null,null,null,null,null,null,null,null,null,null,null,null,null,null,"Omar Nagy",null,null,null,null,null,null,null,null,null,1000414,null,null,null,60]
[null,null,null,null,null,null,null,null,null,null,null,null,null,null,null,"Omar Nagy",null,null,null,null,null,null,null,null,null,1000416,null,null,null,90]
[null,null,null,null,null,null,null,null,null,null,null,null,"5 $ Discount",null,null,"Omar Nagy",null,null,null,null,null,null,null,null,null,1000421,null,null,null,55]
[null,null,null,null,null,null,null,null,null,null,null,null,null,null,null,"Omar Nagy",null,null,null,null,null,null,null,null,null,1000422,null,null,null,60]
[null,null,null,null,null,null,null,null,null,null,null,null,null,null,null,"Omar Nagy",null,null,null,null,null,null,null,null,null,1000423,null,null,null,60]
[null,null,null,null,null,null,null,null,null,null,null,null,null,null,null,"Omar Nagy",null,null,null,null,null,null,null,null,null,1000424,null,null,null,30]
[null,null,null,null,null,null,null,null,null,null,null,null,null,null,null,"Omar Nagy",null,null,null,null,null,null,null,null,null,1000425,null,null,null,60]
[null,null,null,null,null,null,null,null,null,null,null,null,null,null,null,"Omar Nagy",null,null,null,null,null,null,null,null,null,1000427,null,null,null,80]
[null,null,null,null,null,null,null,null,null,null,null,null,"Shopping",null,null,"Omar Nagy",null,null,null,null,null,null,null,null,null,1000428,null,null,null,0]
[null,null,null,null,null,null,null,null,null,null,null,null,"Shopping",null,null,"Omar Nagy",null,null,null,null,null,null,null,null,null,1000429,null,null,null,0]
[null,null,null,null,null,null,null,null,null,null,null,null,null,null,null,"Omar Nagy",null,null,null,null,null,null,null,null,null,1000430,null,null,null,165]
[null,null,null,null,null,null,null,null,null,null,null,null,null,null,null,"Omar Nagy",null,null,null,null,null,null,null,null,null,1000431,null,null,null,60]
[null,null,null,null,null,null,null,null,null,null,null,null,null,null,null,"Omar Nagy",null,null,null,null,null,null,null,null,null,1000432,null,null,null,80]
[null,null,null,null,null,null,null,null,null,null,null,null,null,null,null,"Omar Nagy",null,null,null,null,null,null,null,null,null,1000433,null,null,null,110]
[null,null,null,null,null,null,null,null,null,null,null,null,"Shopping",null,null,"Omar Nagy",null,null,null,null,null,null,null,null,null,1000434,null,null,null,0]
[null,null,null,null,null,null,null,null,null,null,null,null,"10 $ Discount",null,null,"Omar Nagy",null,null,null,null,null,null,null,null,null,1000435,null,null,null,100]
[null,null,null,null,null,null,null,null,null,null,null,null,"Shopping",null,null,"Omar Nagy",null,null,null,null,null,null,null,null,null,1000436,null,null,null,0]
[null,null,null,null,null,null,null,null,null,null,null,null,"Shopping",null,null,"Omar Nagy",null,null,null,null,null,null,null,null,null,1000437,null,null,null,0]
[null,null,null,null,null,null,null,null,null,null,null,null,null,null,null,"Omar Nagy",null,null,null,null,null,null,null,null,null,1000438,null,null,null,440]
[null,null,null,null,null,null,null,null,null,null,null,null,"35$ Discount",null,null,"Omar Nagy",null,null,null,null,null,null,null,null,null,1000439,null,null,null,115]
[null,null,null,null,null,null,null,null,null,null,null,null,null,null,null,"Samir Fouad",null,null,null,null,null,null,null,null,null,1000575,null,null,null,40]
[null,null,null,null,null,null,null,null,null,null,null,null,"Shopping",null,null,"Samir Fouad",null,null,null,null,null,null,null,null,null,1000588,null,null,null,0]
[null,null,null,null,null,null,null,null,null,null,null,null,null,null,null,"Samir Fouad",null,null,null,null,null,null,null,null,null,1000701,null,null,null,60]
[null,null,null,null,null,null,null,null,null,null,null,null,null,null,null,"Samir Fouad",null,null,null,null,null,null,null,null,null,1000702,null,null,null,80]
[null,null,null,null,null,null,null,null,null,null,null,null,"Shopping",null,null,"Samir Fouad",null,null,null,null,null,null,null,null,null,1000703,null,null,null,0]
[null,null,null,null,null,null,null,null,null,null,null,null,null,null,null,"Samir Fouad",null,null,null,null,null,null,null,null,null,1000704,null,null,null,80]
[null,null,null,null,null,null,null,null,null,null,null,null,null,null,null,"Samir Fouad",null,null,null,null,null,null,null,null,null,1000706,null,null,null,200]
[null,null,null,null,null,null,null,null,null,null,null,null,null,null,null,"Samir Fouad",null,null,null,null,null,null,null,null,null,1000707,null,null,null,70]
[null,null,null,null,null,null,null,null,null,null,null,null,"Shopping",null,null,"Samir Fouad",null,null,null,null,null,null,null,null,null,1000708,null,null,null,0]
[null,null,null,null,null,null,null,null,null,null,null,null,null,null,null,"Samir Fouad",null,null,null,null,null,null,null,null,null,1000709,null,null,null,80]
[null,null,null,null,null,null,null,null,null,null,null,null,null,null,null,"Samir Fouad",null,null,null,null,null,null,null,null,null,1000710,null,null,null,35]
[null,null,null,null,null,null,null,null,null,null,null,null,"Shopping",null,null,"Samir Fouad",null,null,null,null,null,null,null,null,null,1000711,null,null,null,0]
[null,null,null,null,null,null,null,null,null,null,null,null,null,null,null,"Samir Fouad",null,null,null,null,null,null,null,null,null,1000712,null,null,null,40]
[null,null,null,null,null,null,null,null,null,null,null,null,"5 $ Discount",null,null,"Samir Fouad",null,null,null,null,null,null,null,null,null,1000713,null,null,null,208]
[null,null,null,null,null,null,null,null,null,null,null,null,"5 $ Discount",null,null,"Samir Fouad",null,null,null,null,null,null,null,null,null,1000714,null,null,null,95]
[null,null,null,null,null,null,null,null,null,null,null,null,"5 $ Discount",null,null,"Samir Fouad",null,null,null,null,null,null,null,null,null,1000715,null,null,null,30]
[null,null,null,null,null,null,null,null,null,null,null,null,"Shopping",null,null,"Samir Fouad",null,null,null,null,null,null,null,null,null,1000716,null,null,null,0]
[null,null,null,null,null,null,null,null,null,null,null,null,null,null,null,"Samir Fouad",null,null,null,null,null,null,null,null,null,1000717,null,null,null,55]
[null,null,null,null,null,null,null,null,null,null,null,null,null,null,null,"Samir Fouad",null,null,null,null,null,null,null,null,null,1000718,null,null,null,95]
[null,null,null,null,null,null,null,null,null,null,null,null,"Shopping",null,null,"Samir Fouad",null,null,null,null,null,null,null,null,null,1000719,null,null,null,0]
[null,null,null,null,null,null,null,null,null,null,null,null,null,null,null,"Samir Fouad",null,null,null,null,null,null,null,null,null,1000720,null,null,null,90]
[null,null,null,null,null,null,null,null,null,null,null,null,null,null,null,"Samir Fouad",null,null,null,null,null,null,null,null,null,1000721,null,null,null,110]
[null,null,null,null,null,null,null,null,null,null,null,null,"Shopping",null,null,"Samir Fouad",null,null,null,null,null,null,null,null,null,1000723,null,null,null,0]
[null,null,null,null,null,null,null,null,null,null,null,null,"10 $ Discount",null,null,"Samir Fouad",null,null,null,null,null,null,null,null,null,1000724,null,null,null,110]
[null,null,null,null,null,null,null,null,null,null,null,null,"Shopping",null,null,"Samir Fouad",null,null,null,null,null,null,null,null,null,1000725,null,null,null,0]
[null,null,null,null,null,null,null,null,null,null,null,null,null,null,null,"Samir Fouad",null,null,null,null,null,null,null,null,null,1000726,null,null,null,80]
[null,null,null,null,null,null,null,null,null,null,null,null,"Shopping",null,null,"Samir Fouad",null,null,null,null,null,null,null,null,null,1000727,null,null,null,0]
[null,null,null,null,null,null,null,null,null,null,null,null,"15 $ Discount",null,null,"Samir Fouad",null,null,null,null,null,null,null,null,null,1000728,null,null,null,90]
[null,null,null,null,null,null,null,null,null,null,null,null,"5 $ Discount",null,null,"Samir Fouad",null,null,null,null,null,null,null,null,null,1000729,null,null,null,30]
[null,null,null,null,null,null,null,null,null,null,null,null,null,null,null,"Samir Fouad",null,null,null,null,null,null,null,null,null,1000730,null,null,null,110]
[null,null,null,null,null,null,null,null,null,null,null,null,"Shopping",null,null,"Samir Fouad",null,null,null,null,null,null,null,null,null,1000731,null,null,null,0]
[null,null,null,null,null,null,null,null,null,null,null,null,"Shopping",null,null,"Samir Fouad",null,null,null,null,null,null,null,null,null,1000732,null,null,null,0]
[null,null,null,null,null,null,null,null,null,null,null,null,null,null,null,"Samir Fouad",null,null,null,null,null,null,null,null,null,1000733,null,null,null,160]
[null,null,null,null,null,null,null,null,null,null,null,null,null,null,null,"Samir Fouad",null,null,null,null,null,null,null,null,null,1000734,null,null,null,160]
[null,null,null,null,null,null,null,null,null,null,null,null,null,null,null,"Samir Fouad",null,null,null,null,null,null,null,null,null,1000735,null,null,null,110]
[null,null,null,null,null,null,null,null,null,null,null,null,null,null,null,"Samir Fouad",null,null,null,null,null,null,null,null,null,1000736,null,null,null,160]
[null,null,null,null,null,null,null,null,null,null,null,null,null,null,null,"Samir Fouad",null,null,null,null,null,null,null,null,null,1000737,null,null,null,110]
[null,null,null,null,null,null,null,null,null,null,null,null,null,null,null,"Samir Fouad",null,null,null,null,null,null,null,null,null,1000738,null,null,null,160]
[null,null,null,null,null,null,null,null,null,null,null,null,null,null,null,"Samir Fouad",null,null,null,null,null,null,null,null,null,1000739,null,null,null,110]
[null,null,null,null,null,null,null,null,null,null,null,null,null,null,null,"Samir Fouad",null,null,null,null,null,null,null,null,null,1000740,null,null,null,160]
[null,null,null,null,null,null,null,null,null,null,null,null,null,null,null,"Samir Fouad",null,null,null,null,null,null,null,null,null,1000741,null,null,null,240]
[null,null,null,null,null,null,null,null,null,null,null,null,"Shopping",null,null,"Samir Fouad",null,null,null,null,null,null,null,null,null,1000742,null,null,null,0]
[null,null,null,null,null,null,null,null,null,null,null,null,null,null,null,"Samir Fouad",null,null,null,null,null,null,null,null,null,1000743,null,null,null,240]
[null,null,null,null,null,null,null,null,null,null,null,null,null,null,null,"Samir Fouad",null,null,null,null,null,null,null,null,null,1000744,null,null,null,186]
[null,null,null,null,null,null,null,null,null,null,null,null,null,null,null,"Samir Fouad",null,null,null,null,null,null,null,null,null,1000745,null,null,null,106]
[null,null,null,null,null,null,null,null,null,null,null,null,"Shopping",null,null,"Samir Fouad",null,null,null,null,null,null,null,null,null,1000746,null,null,null,0]
[null,null,null,null,null,null,null,null,null,null,null,null,"Shopping",null,null,"Samir Fouad",null,null,null,null,null,null,null,null,null,1000748,null,null,null,0]
[null,null,null,null,null,null,null,null,null,null,null,null,"10 $ Discount",null,null,"Samir Fouad",null,null,null,null,null,null,null,null,null,1000749,null,null,null,70]
[null,null,null,null,null,null,null,null,null,null,null,null,"Shopping",null,null,"Samir Fouad",null,null,null,null,null,null,null,null,null,1000750,null,null,null,0]
[null,null,null,null,null,null,null,null,null,null,null,null,null,null,null,"Samir Fouad",null,null,null,null,null,null,null,null,null,1000801,null,null,null,110]
[null,null,null,null,null,null,null,null,null,null,null,null,"Shopping",null,null,"Samir Fouad",null,null,null,null,null,null,null,null,null,1000802,null,null,null,0]
[null,null,null,null,null,null,null,null,null,null,null,null,null,null,null,"Samir Fouad",null,null,null,null,null,null,null,null,null,1000804,null,null,null,70]
[null,null,null,null,null,null,null,null,null,null,null,null,null,null,null,"Samir Fouad",null,null,null,null,null,null,null,null,null,1000805,null,null,null,80]
[null,null,null,null,null,null,null,null,null,null,null,null,null,null,null,"Samir Fouad",null,null,null,null,null,null,null,null,null,1000806,null,null,null,80]
[null,null,null,null,null,null,null,null,null,null,null,null,"Shopping",null,null,"Samir Fouad",null,null,null,null,null,null,null,null,null,1000807,null,null,null,0]
[null,null,null,null,null,null,null,null,null,null,null,null,"10 $ Discount",null,null,"Samir Fouad",null,null,null,null,null,null,null,null,null,1000808,null,null,null,60]
[null,null,null,null,null,null,null,null,null,null,null,null,"Shopping",null,null,"Samir Fouad",null,null,null,null,null,null,null,null,null,1000809,null,null,null,0]
[null,null,null,null,null,null,null,null,null,null,null,null,"20 $ Discount",null,null,"Samir Fouad",null,null,null,null,null,null,null,null,null,1000810,null,null,null,140]
[null,null,null,null,null,null,null,null,null,null,null,null,null,null,null,"Samir Fouad",null,null,null,null,null,null,null,null,null,1000811,null,null,null,80]
[null,null,null,null,null,null,null,null,null,null,null,null,null,null,null,"Samir Fouad",null,null,null,null,null,null,null,null,null,1000812,null,null,null,55]
[null,null,null,null,null,null,null,null,null,null,null,null,"Shopping",null,null,"Samir Fouad",null,null,null,null,null,null,null,null,null,1000814,null,null,null,0]
[null,null,null,null,null,null,null,null,null,null,null,null,"Shopping",null,null,"Samir Fouad",null,null,null,null,null,null,null,null,null,1000815,null,null,null,0]
[null,null,null,null,null,null,null,null,null,null,null,null,null,null,null,"Samir Fouad",null,null,null,null,null,null,null,null,null,1000816,null,null,null,160]
[null,null,null,null,null,null,null,null,null,null,null,null,null,null,null,"Samir Fouad",null,null,null,null,null,null,null,null,null,1000817,null,null,null,80]
[null,null,null,null,null,null,null,null,null,null,null,null,"Shopping",null,null,"Samir Fouad",null,null,null,null,null,null,null,null,null,1000818,null,null,null,0]
[null,null,null,null,null,null,null,null,null,null,null,null,null,null,null,"Samir Fouad",null,null,null,null,null,null,null,null,null,1000819,null,null,null,160]
[null,null,null,null,null,null,null,null,null,null,null,null,null,null,null,"Samir Fouad",null,null,null,null,null,null,null,null,null,1000820,null,null,null,120]
[null,null,null,null,null,null,null,null,null,null,null,null,null,null,null,"Samir Fouad",null,null,null,null,null,null,null,null,null,1000821,null,null,null,160]
[null,null,null,null,null,null,null,null,null,null,null,null,null,null,null,"Samir Fouad",null,null,null,null,null,null,null,null,null,1000822,null,null,null,120]
[null,null,null,null,null,null,null,null,null,null,null,null,"Shopping",null,null,"Samir Fouad",null,null,null,null,null,null,null,null,null,1000823,null,null,null,0]
[null,null,null,null,null,null,null,null,null,null,null,null,"Shopping",null,null,"Samir Fouad",null,null,null,null,null,null,null,null,null,1000824,null,null,null,0]
[null,null,null,null,null,null,null,null,null,null,null,null,"Shopping",null,null,"Samir Fouad",null,null,null,null,null,null,null,null,null,1000825,null,null,null,0]
[null,null,null,null,null,null,null,null,null,null,null,null,null,null,null,"Samir Fouad",null,null,null,null,null,null,null,null,null,1000826,null,null,null,70]
[null,null,null,null,null,null,null,null,null,null,null,null,"Shopping",null,null,"Samir Fouad",null,null,null,null,null,null,null,null,null,1000827,null,null,null,0]
[null,null,null,null,null,null,null,null,null,null,null,null,null,null,null,"Samir Fouad",null,null,null,null,null,null,null,null,null,1000828,null,null,null,120]
[null,null,null,null,null,null,null,null,null,null,null,null,null,null,null,"Samir Fouad",null,null,null,null,null,null,null,null,null,1000829,null,null,null,120]
[null,null,null,null,null,null,null,null,null,null,null,null,"20 $ Discount",null,null,"Samir Fouad",null,null,null,null,null,null,null,null,null,1000831,null,null,null,200]
[null,null,null,null,null,null,null,null,null,null,null,null,null,null,null,"Samir Fouad",null,null,null,null,null,null,null,null,null,1000832,null,null,null,320]
[null,null,null,null,null,null,null,null,null,null,null,null,"Shopping",null,null,"Samir Fouad",null,null,null,null,null,null,null,null,null,1000833,null,null,null,0]
[null,null,null,null,null,null,null,null,null,null,null,null,"Shopping",null,null,"Samir Fouad",null,null,null,null,null,null,null,null,null,1000834,null,null,null,0]
[null,null,null,null,null,null,null,null,null,null,null,null,null,null,null,"Samir Fouad",null,null,null,null,null,null,null,null,null,1000835,null,null,null,75]
[null,null,null,null,null,null,null,null,null,null,null,null,null,null,null,"Samir Fouad",null,null,null,null,null,null,null,null,null,1000836,null,null,null,55]
[null,null,null,null,null,null,null,null,null,null,null,null,"Shopping",null,null,"Samir Fouad",null,null,null,null,null,null,null,null,null,1000837,null,null,null,0]
[null,null,null,null,null,null,null,null,null,null,null,null,null,null,null,"Samir Fouad",null,null,null,null,null,null,null,null,null,1000838,null,null,null,60]
[null,null,null,null,null,null,null,null,null,null,null,null,"Shopping",null,null,"Samir Fouad",null,null,null,null,null,null,null,null,null,1000839,null,null,null,0]
[null,null,null,null,null,null,null,null,null,null,null,null,"Shopping",null,null,"Samir Fouad",null,null,null,null,null,null,null,null,null,1000840,null,null,null,0]
[null,null,null,null,null,null,null,null,null,null,null,null,"Shopping",null,null,"Samir Fouad",null,null,null,null,null,null,null,null,null,1000841,null,null,null,0]
[null,null,null,null,null,null,null,null,null,null,null,null,"Shopping",null,null,"Samir Fouad",null,null,null,null,null,null,null,null,null,1000843,null,null,null,0]
[null,null,null,null,null,null,null,null,null,null,null,null,"Shopping",null,null,"Samir Fouad",null,null,null,null,null,null,null,null,null,1000844,null,null,null,0]
[null,null,null,null,null,null,null,null,null,null,null,null,null,null,null,"Samir Fouad",null,null,null,null,null,null,null,null,null,1000845,null,null,null,30]
[null,null,null,null,null,null,null,null,null,null,null,null,"Shopping",null,null,"Samir Fouad",null,null,null,null,null,null,null,null,null,1000846,null,null,null,0]
[null,null,null,null,null,null,null,null,null,null,null,null,null,null,null,"Samir Fouad",null,null,null,null,null,null,null,null,null,1000847,null,null,null,80]
[null,null,null,null,null,null,null,null,null,null,null,null,"Shopping",null,null,"Samir Fouad",null,null,null,null,null,null,null,null,null,1000848,null,null,null,0]
[null,null,null,null,null,null,null,null,null,null,null,null,"10 $ Discount",null,null,"Samir Fouad",null,null,null,null,null,null,null,null,null,1000849,null,null,null,100]
[null,null,null,null,null,null,null,null,null,null,null,null,"Shopping",null,null,"Samir Fouad",null,null,null,null,null,null,null,null,null,1000850,null,null,null,0]
[null,null,null,null,null,null,null,null,null,null,null,null,null,null,null,"Samir Fouad",null,null,null,null,null,null,null,null,null,1001001,null,null,null,110]
[null,null,null,null,null,null,null,null,null,null,null,null,"Shopping",null,null,"Samir Fouad",null,null,null,null,null,null,null,null,null,1001002,null,null,null,0]
[null,null,null,null,null,null,null,null,null,null,null,null,null,null,null,"Samir Fouad",null,null,null,null,null,null,null,null,null,1001003,null,null,null,110]
[null,null,null,null,null,null,null,null,null,null,null,null,null,null,null,"Samir Fouad",null,null,null,null,null,null,null,null,null,1001004,null,null,null,60]
[null,null,null,null,null,null,null,null,null,null,null,null,"Shopping",null,null,"Samir Fouad",null,null,null,null,null,null,null,null,null,1001005,null,null,null,0]
[null,null,null,null,null,null,null,null,null,null,null,null,null,null,null,"Samir Fouad",null,null,null,null,null,null,null,null,null,1001006,null,null,null,110]
[null,null,null,null,null,null,null,null,null,null,null,null,"10 $ Discount",null,null,"Samir Fouad",null,null,null,null,null,null,null,null,null,1001007,null,null,null,100]
[null,null,null,null,null,null,null,null,null,null,null,null,"Shopping",null,null,"Samir Fouad",null,null,null,null,null,null,null,null,null,1001008,null,null,null,0]
[null,null,null,null,null,null,null,null,null,null,null,null,null,null,null,"Samir Fouad",null,null,null,null,null,null,null,null,null,1001009,null,null,null,110]
[null,null,null,null,null,null,null,null,null,null,null,null,"Shopping",null,null,"Samir Fouad",null,null,null,null,null,null,null,null,null,1001010,null,null,null,0]
[null,null,null,null,null,null,null,null,null,null,null,null,"Shopping",null,null,"Samir Fouad",null,null,null,null,null,null,null,null,null,1001011,null,null,null,0]
[null,null,null,null,null,null,null,null,null,null,null,null,null,null,null,"Samir Fouad",null,null,null,null,null,null,null,null,null,1001012,null,null,null,55]
[null,null,null,null,null,null,null,null,null,null,null,null,"Shopping",null,null,"Samir Fouad",null,null,null,null,null,null,null,null,null,1001013,null,null,null,0]
[null,null,null,null,null,null,null,null,null,null,null,null,"Shopping",null,null,"Samir Fouad",null,null,null,null,null,null,null,null,null,1001014,null,null,null,0]
[null,null,null,null,null,null,null,null,null,null,null,null,"Shopping",null,null,"Samir Fouad",null,null,null,null,null,null,null,null,null,1001015,null,null,null,0]
[null,null,null,null,null,null,null,null,null,null,null,null,"10 $ Discount",null,null,"Samir Fouad",null,null,null,null,null,null,null,null,null,1001016,null,null,null,110]
[null,null,null,null,null,null,null,null,null,null,null,null,null,null,null,"Samir Fouad",null,null,null,null,null,null,null,null,null,1001017,null,null,null,110]
[null,null,null,null,null,null,null,null,null,null,null,null,"10 $ Discount",null,null,"Samir Fouad",null,null,null,null,null,null,null,null,null,1001018,null,null,null,100]
[null,null,null,null,null,null,null,null,null,null,null,null,"Shopping",null,null,"Samir Fouad",null,null,null,null,null,null,null,null,null,1001019,null,null,null,0]
[null,null,null,null,null,null,null,null,null,null,null,null,"10 $ Discount",null,null,"Samir Fouad",null,null,null,null,null,null,null,null,null,1001020,null,null,null,100]
[null,null,null,null,null,null,null,null,null,null,null,null,"Shopping",null,null,"Samir Fouad",null,null,null,null,null,null,null,null,null,1001021,null,null,null,0]
[null,null,null,null,null,null,null,null,null,null,null,null,null,null,null,"Samir Fouad",null,null,null,null,null,null,null,null,null,1001022,null,null,null,99]
[null,null,null,null,null,null,null,null,null,null,null,null,"35$ Discount",null,null,"Samir Fouad",null,null,null,null,null,null,null,null,null,1001023,null,null,null,25]
[null,null,null,null,null,null,null,null,null,null,null,null,"Shopping",null,null,"Samir Fouad",null,null,null,null,null,null,null,null,null,1001024,null,null,null,0]
[null,null,null,null,null,null,null,null,null,null,null,null,"Shopping",null,null,"Samir Fouad",null,null,null,null,null,null,null,null,null,1001025,null,null,null,0]
[null,null,null,null,null,null,null,null,null,null,null,null,"5 $ Discount",null,null,"Samir Fouad",null,null,null,null,null,null,null,null,null,1001026,null,null,null,25]
[null,null,null,null,null,null,null,null,null,null,null,null,"5 $ Discount",null,null,"Samir Fouad",null,null,null,null,null,null,null,null,null,1001027,null,null,null,50]
[null,null,null,null,null,null,null,null,null,null,null,null,"10 $ Discount",null,null,"Samir Fouad",null,null,null,null,null,null,null,null,null,1001028,null,null,null,50]
[null,null,null,null,null,null,null,null,null,null,null,null,null,null,null,"Samir Fouad",null,null,null,null,null,null,null,null,null,1001029,null,null,null,198]
[null,null,null,null,null,null,null,null,null,null,null,null,"10 $ Discount",null,null,"Samir Fouad",null,null,null,null,null,null,null,null,null,1001030,null,null,null,100]
[null,null,null,null,null,null,null,null,null,null,null,null,"5 $ Discount",null,null,"Samir Fouad",null,null,null,null,null,null,null,null,null,1001031,null,null,null,25]
[null,null,null,null,null,null,null,null,null,null,null,null,"10 $ Discount",null,null,"Samir Fouad",null,null,null,null,null,null,null,null,null,1001032,null,null,null,100]
[null,null,null,null,null,null,null,null,null,null,null,null,null,null,null,"Samir Fouad",null,null,null,null,null,null,null,null,null,1001033,null,null,null,99]
[null,null,null,null,null,null,null,null,null,null,null,null,"Shopping",null,null,"Samir Fouad",null,null,null,null,null,null,null,null,null,1001034,null,null,null,0]
[null,null,null,null,null,null,null,null,null,null,null,null,null,null,null,"Samir Fouad",null,null,null,null,null,null,null,null,null,1001035,null,null,null,120]
[null,null,null,null,null,null,null,null,null,null,null,null,null,null,null,"Samir Fouad",null,null,null,null,null,null,null,null,null,1001036,null,null,null,220]
[null,null,null,null,null,null,null,null,null,null,null,null,"Shopping",null,null,"Samir Fouad",null,null,null,null,null,null,null,null,null,1001037,null,null,null,0]
[null,null,null,null,null,null,null,null,null,null,null,null,null,null,null,"Samir Fouad",null,null,null,null,null,null,null,null,null,1001038,null,null,null,110]
[null,null,null,null,null,null,null,null,null,null,null,null,null,null,null,"Samir Fouad",null,null,null,null,null,null,null,null,null,1001039,null,null,null,160]
[null,null,null,null,null,null,null,null,null,null,null,null,"Shopping",null,null,"Samir Fouad",null,null,null,null,null,null,null,null,null,1001040,null,null,null,0]
[null,null,null,null,null,null,null,null,null,null,null,null,null,null,null,"Samir Fouad",null,null,null,null,null,null,null,null,null,1001041,null,null,null,45]
[null,null,null,null,null,null,null,null,null,null,null,null,null,null,null,"Samir Fouad",null,null,null,null,null,null,null,null,null,1001042,null,null,null,120]
[null,null,null,null,null,null,null,null,null,null,null,null,"Shopping",null,null,"Samir Fouad",null,null,null,null,null,null,null,null,null,1001043,null,null,null,0]
[null,null,null,null,null,null,null,null,null,null,null,null,null,null,null,"Samir Fouad",null,null,null,null,null,null,null,null,null,1001044,null,null,null,60]
[null,null,null,null,null,null,null,null,null,null,null,null,"Shopping",null,null,"Samir Fouad",null,null,null,null,null,null,null,null,null,1001045,null,null,null,0]
[null,null,null,null,null,null,null,null,null,null,null,null,null,null,null,"Samir Fouad",null,null,null,null,null,null,null,null,null,1001046,null,null,null,160]
[null,null,null,null,null,null,null,null,null,null,null,null,"Shopping",null,null,"Samir Fouad",null,null,null,null,null,null,null,null,null,1001047,null,null,null,0]
[null,null,null,null,null,null,null,null,null,null,null,null,null,null,null,"Samir Fouad",null,null,null,null,null,null,null,null,null,1001048,null,null,null,80]
[null,null,null,null,null,null,null,null,null,null,null,null,null,null,null,"Samir Fouad",null,null,null,null,null,null,null,null,null,1001049,null,null,null,60]
[null,null,null,null,null,null,null,null,null,null,null,null,"5 $ Discount",null,null,"Samir Fouad",null,null,null,null,null,null,null,null,null,1001050,null,null,null,40]
[null,null,null,null,null,null,null,null,null,null,null,null,"Shopping",null,null,"Samir Fouad",null,null,null,null,null,null,null,null,null,1001051,null,null,null,0]
[null,null,null,null,null,null,null,null,null,null,null,null,null,null,null,"Samir Fouad",null,null,null,null,null,null,null,null,null,1001052,null,null,null,55]
[null,null,null,null,null,null,null,null,null,null,null,null,null,null,null,"Samir Fouad",null,null,null,null,null,null,null,null,null,1001053,null,null,null,40]
[null,null,null,null,null,null,null,null,null,null,null,null,"Shopping",null,null,"Samir Fouad",null,null,null,null,null,null,null,null,null,1001054,null,null,null,0]
[null,null,null,null,null,null,null,null,null,null,null,null,null,null,null,"Samir Fouad",null,null,null,null,null,null,null,null,null,1001055,null,null,null,320]
[null,null,null,null,null,null,null,null,null,null,null,null,"Shopping",null,null,"Samir Fouad",null,null,null,null,null,null,null,null,null,1001056,null,null,null,0]
[null,null,null,null,null,null,null,null,null,null,null,null,null,null,null,null,null,null,null,null,null,null,null,null,null,null,null,null,null,{"$f":"SUM(AD3:AD223)","v":14826}]

{"sheet":"Samir Fouad","index":1,"n_rows":81,"n_cols":5,"rows_kept":81,"cut":false,"hidden":false,"merged":[[41,0,41,1],[41,4,42,4],[37,0,37,1],[0,0,0,1],[78,0,78,1]]}
[{"$f":"TODAY()","v":"2021-01-24"},null,null,null,1]
[]
["Company :Safari Company"]
[]
["Guide Name: Samir Fouad"]
[]
["No.","Voucher no.","Cash",null,"Remarks"]
[{"$f":"IF($B8=\"\",\"\",SUBTOTAL(3,$B$8:B8))","v":""}]
[{"$f":"IF($B9=\"\",\"\",SUBTOTAL(3,$B$8:B9))","v":""}]
[{"$f":"IF($B10=\"\",\"\",SUBTOTAL(3,$B$8:B10))","v":""}]
[{"$f":"IF($B11=\"\",\"\",SUBTOTAL(3,$B$8:B11))","v":""}]
[{"$f":"IF($B12=\"\",\"\",SUBTOTAL(3,$B$8:B12))","v":""}]
[{"$f":"IF($B13=\"\",\"\",SUBTOTAL(3,$B$8:B13))","v":""}]
[{"$f":"IF($B14=\"\",\"\",SUBTOTAL(3,$B$8:B14))","v":""}]
[{"$f":"IF($B15=\"\",\"\",SUBTOTAL(3,$B$8:B15))","v":""}]
[{"$f":"IF($B16=\"\",\"\",SUBTOTAL(3,$B$8:B16))","v":""}]
[{"$f":"IF($B17=\"\",\"\",SUBTOTAL(3,$B$8:B17))","v":""}]
[{"$f":"IF($B18=\"\",\"\",SUBTOTAL(3,$B$8:B18))","v":""}]
[{"$f":"IF($B19=\"\",\"\",SUBTOTAL(3,$B$8:B19))","v":""}]
[{"$f":"IF($B20=\"\",\"\",SUBTOTAL(3,$B$8:B20))","v":""}]
[{"$f":"IF($B21=\"\",\"\",SUBTOTAL(3,$B$8:B21))","v":""}]
[{"$f":"IF($B22=\"\",\"\",SUBTOTAL(3,$B$8:B22))","v":""}]
[{"$f":"IF($B23=\"\",\"\",SUBTOTAL(3,$B$8:B23))","v":""}]
[{"$f":"IF($B24=\"\",\"\",SUBTOTAL(3,$B$8:B24))","v":""}]
[{"$f":"IF($B25=\"\",\"\",SUBTOTAL(3,$B$8:B25))","v":""}]
[{"$f":"IF($B26=\"\",\"\",SUBTOTAL(3,$B$8:B26))","v":""}]
[{"$f":"IF($B27=\"\",\"\",SUBTOTAL(3,$B$8:B27))","v":""}]
[{"$f":"IF($B28=\"\",\"\",SUBTOTAL(3,$B$8:B28))","v":""}]
[{"$f":"IF($B29=\"\",\"\",SUBTOTAL(3,$B$8:B29))","v":""}]
[{"$f":"IF($B30=\"\",\"\",SUBTOTAL(3,$B$8:B30))","v":""}]
[{"$f":"IF($B31=\"\",\"\",SUBTOTAL(3,$B$8:B31))","v":""}]
[{"$f":"IF($B32=\"\",\"\",SUBTOTAL(3,$B$8:B32))","v":""}]
[{"$f":"IF($B33=\"\",\"\",SUBTOTAL(3,$B$8:B33))","v":""}]
[{"$f":"IF($B34=\"\",\"\",SUBTOTAL(3,$B$8:B34))","v":""}]
[{"$f":"IF($B35=\"\",\"\",SUBTOTAL(3,$B$8:B35))","v":""}]
[{"$f":"IF($B36=\"\",\"\",SUBTOTAL(3,$B$8:B36))","v":""}]
[{"$f":"IF($B37=\"\",\"\",SUBTOTAL(3,$B$8:B37))","v":""}]
["Total :",null,{"$f":"SUM(C8:C37)","v":0}]
[]
["Guide Signature :…………………………………………………………………………………………………….."]
[]
[{"$f":"TODAY()","v":"2021-01-24"}]
[]
["Company :Safari Company"]
[]
["Guide Name: Samir Fouad"]
[]
["No.","Voucher no.","Cash",null,"Remarks"]
[{"$f":"IF($B49=\"\",\"\",SUBTOTAL(3,$B$8:B49))","v":2},1000707,70,null,0]
[{"$f":"IF($B50=\"\",\"\",SUBTOTAL(3,$B$8:B50))","v":3},1000708,0,null,"Shopping"]
[{"$f":"IF($B51=\"\",\"\",SUBTOTAL(3,$B$8:B51))","v":4},1000709,80,null,0]
[{"$f":"IF($B52=\"\",\"\",SUBTOTAL(3,$B$8:B52))","v":5},1000710,35,null,0]
[{"$f":"IF($B53=\"\",\"\",SUBTOTAL(3,$B$8:B53))","v":6},1000711,0,null,"Shopping"]
[{"$f":"IF($B54=\"\",\"\",SUBTOTAL(3,$B$8:B54))","v":7},1000712,40,null,0]
[{"$f":"IF($B55=\"\",\"\",SUBTOTAL(3,$B$8:B55))","v":8},1000713,208,null,"5 $ Discount"]
[{"$f":"IF($B56=\"\",\"\",SUBTOTAL(3,$B$8:B56))","v":9},1000714,95,null,"5 $ Discount"]
[{"$f":"IF($B57=\"\",\"\",SUBTOTAL(3,$B$8:B57))","v":10},1000715,30,null,"5 $ Discount"]
[{"$f":"IF($B58=\"\",\"\",SUBTOTAL(3,$B$8:B58))","v":11},1000716,0,null,"Shopping"]
[{"$f":"IF($B59=\"\",\"\",SUBTOTAL(3,$B$8:B59))","v":12},1000717,55,null,0]
[{"$f":"IF($B60=\"\",\"\",SUBTOTAL(3,$B$8:B60))","v":13},1000718,95,null,0]
[{"$f":"IF($B61=\"\",\"\",SUBTOTAL(3,$B$8:B61))","v":14},1000719,0,null,"Shopping"]
[{"$f":"IF($B62=\"\",\"\",SUBTOTAL(3,$B$8:B62))","v":15},1000720,90,null,0]
[{"$f":"IF($B63=\"\",\"\",SUBTOTAL(3,$B$8:B63))","v":16},1000721,110,null,0]
[{"$f":"IF($B64=\"\",\"\",SUBTOTAL(3,$B$8:B64))","v":17},1000723,0,null,"Shopping"]
[{"$f":"IF($B65=\"\",\"\",SUBTOTAL(3,$B$8:B65))","v":18},1000724,110,null,"10 $ Discount"]
[{"$f":"IF($B66=\"\",\"\",SUBTOTAL(3,$B$8:B66))","v":19},1000725,0,null,"Shopping"]
[{"$f":"IF($B67=\"\",\"\",SUBTOTAL(3,$B$8:B67))","v":20},1000726,80,null,0]
[{"$f":"IF($B68=\"\",\"\",SUBTOTAL(3,$B$8:B68))","v":21},1000727,0,null,"Shopping"]
[{"$f":"IF($B69=\"\",\"\",SUBTOTAL(3,$B$8:B69))","v":22},1000728,90,null,"15 $ Discount"]
[{"$f":"IF($B70=\"\",\"\",SUBTOTAL(3,$B$8:B70))","v":23},1000729,30,null,"5 $ Discount"]
[{"$f":"IF($B71=\"\",\"\",SUBTOTAL(3,$B$8:B71))","v":24},1000730,110,null,0]
[{"$f":"IF($B72=\"\",\"\",SUBTOTAL(3,$B$8:B72))","v":25},1000731,0,null,"Shopping"]
[{"$f":"IF($B73=\"\",\"\",SUBTOTAL(3,$B$8:B73))","v":26},1000732,0,null,"Shopping"]
[{"$f":"IF($B74=\"\",\"\",SUBTOTAL(3,$B$8:B74))","v":27},1000733,160,null,0]
[{"$f":"IF($B75=\"\",\"\",SUBTOTAL(3,$B$8:B75))","v":28},1000734,160,null,0]
[{"$f":"IF($B76=\"\",\"\",SUBTOTAL(3,$B$8:B76))","v":29},1000735,110,null,0]
[{"$f":"IF($B77=\"\",\"\",SUBTOTAL(3,$B$8:B77))","v":30},1000736,160,null,0]
[{"$f":"IF($B78=\"\",\"\",SUBTOTAL(3,$B$8:B78))","v":31},1000737,110,null,0]
["Total :",null,{"$f":"SUM(C49:C78)","v":2028}]
[]
["Guide Signature :…………………………………………………………………………………………………….."]

{"sheet":"Omar Nagy","index":2,"n_rows":122,"n_cols":5,"rows_kept":122,"cut":false,"hidden":false,"merged":[[119,0,119,1],[86,0,86,4],[78,0,78,1],[82,4,83,4],[84,0,84,4],[37,0,37,1],[0,4,1,4],[41,4,42,4]]}
[{"$f":"TODAY()","v":"2021-01-24"}]
[]
["Company :Safari Company"]
[]
["Guide Name: Omar Nagy"]
[]
["No.","Voucher no.","Cash",null,"Remarks"]
[{"$f":"IF($B8=\"\",\"\",SUBTOTAL(3,$B$8:B8))","v":1},1000411,55,null,0]
[{"$f":"IF($B9=\"\",\"\",SUBTOTAL(3,$B$8:B9))","v":2},1000413,220,null,0]
[{"$f":"IF($B10=\"\",\"\",SUBTOTAL(3,$B$8:B10))","v":3},1000414,60,null,0]
[{"$f":"IF($B11=\"\",\"\",SUBTOTAL(3,$B$8:B11))","v":4},1000416,90,null,0]
[{"$f":"IF($B12=\"\",\"\",SUBTOTAL(3,$B$8:B12))","v":5},1000421,55,null,"5 $ Discount"]
[{"$f":"IF($B13=\"\",\"\",SUBTOTAL(3,$B$8:B13))","v":6},1000422,60,null,0]
[{"$f":"IF($B14=\"\",\"\",SUBTOTAL(3,$B$8:B14))","v":7},1000423,60,null,0]
[{"$f":"IF($B15=\"\",\"\",SUBTOTAL(3,$B$8:B15))","v":8},1000424,30,null,0]
[{"$f":"IF($B16=\"\",\"\",SUBTOTAL(3,$B$8:B16))","v":9},1000425,60,null,0]
[{"$f":"IF($B17=\"\",\"\",SUBTOTAL(3,$B$8:B17))","v":10},1000427,80,null,0]
[{"$f":"IF($B18=\"\",\"\",SUBTOTAL(3,$B$8:B18))","v":11},1000428,0,null,"Shopping"]
[{"$f":"IF($B19=\"\",\"\",SUBTOTAL(3,$B$8:B19))","v":12},1000429,0,null,"Shopping"]
[{"$f":"IF($B20=\"\",\"\",SUBTOTAL(3,$B$8:B20))","v":13},1000430,165,null,0]
[{"$f":"IF($B21=\"\",\"\",SUBTOTAL(3,$B$8:B21))","v":14},1000431,60,null,0]
[{"$f":"IF($B22=\"\",\"\",SUBTOTAL(3,$B$8:B22))","v":15},1000432,80,null,0]
[{"$f":"IF($B23=\"\",\"\",SUBTOTAL(3,$B$8:B23))","v":16},1000433,110,null,0]
[{"$f":"IF($B24=\"\",\"\",SUBTOTAL(3,$B$8:B24))","v":17},1000434,0,null,"Shopping"]
[{"$f":"IF($B25=\"\",\"\",SUBTOTAL(3,$B$8:B25))","v":18},1000435,100,null,"10 $ Discount"]
[{"$f":"IF($B26=\"\",\"\",SUBTOTAL(3,$B$8:B26))","v":19},1000436,0,null,"Shopping"]
[{"$f":"IF($B27=\"\",\"\",SUBTOTAL(3,$B$8:B27))","v":20},1000437,0,null,"Shopping"]
[{"$f":"IF($B28=\"\",\"\",SUBTOTAL(3,$B$8:B28))","v":21},1000438,440,null,0]
[{"$f":"IF($B29=\"\",\"\",SUBTOTAL(3,$B$8:B29))","v":22},1000439,115,null,"35$ Discount"]
[{"$f":"IF($B30=\"\",\"\",SUBTOTAL(3,$B$8:B30))","v":""},null,null,null,""]
[{"$f":"IF($B31=\"\",\"\",SUBTOTAL(3,$B$8:B31))","v":""},null,null,null,""]
[{"$f":"IF($B32=\"\",\"\",SUBTOTAL(3,$B$8:B32))","v":""},null,null,null,""]
[{"$f":"IF($B33=\"\",\"\",SUBTOTAL(3,$B$8:B33))","v":""},null,null,null,""]
[{"$f":"IF($B34=\"\",\"\",SUBTOTAL(3,$B$8:B34))","v":""},null,null,null,""]
[{"$f":"IF($B35=\"\",\"\",SUBTOTAL(3,$B$8:B35))","v":""},null,null,null,""]
[{"$f":"IF($B36=\"\",\"\",SUBTOTAL(3,$B$8:B36))","v":""},null,null,null,""]
[{"$f":"IF($B37=\"\",\"\",SUBTOTAL(3,$B$8:B37))","v":""},null,null,null,""]
["Total :",null,{"$f":"SUM(C8:C37)","v":1840}]
[]
["Guide Signature :…………………………………………………………………………………………………….."]
[]
[{"$f":"TODAY()","v":"2021-01-24"}]
[]
["Company :Safari Company"]
[]
["Guide Name: Omar Nagy"]
[]
["No.","Voucher no.","Cash",null,"Remarks"]
[{"$f":"IF($B49=\"\",\"\",SUBTOTAL(3,$B$8:B49))","v":""},null,null,null,""]
[{"$f":"IF($B50=\"\",\"\",SUBTOTAL(3,$B$8:B50))","v":""},null,null,null,""]
[{"$f":"IF($B51=\"\",\"\",SUBTOTAL(3,$B$8:B51))","v":""},null,null,null,""]
[{"$f":"IF($B52=\"\",\"\",SUBTOTAL(3,$B$8:B52))","v":""},null,null,null,""]
[{"$f":"IF($B53=\"\",\"\",SUBTOTAL(3,$B$8:B53))","v":""},null,null,null,""]
[{"$f":"IF($B54=\"\",\"\",SUBTOTAL(3,$B$8:B54))","v":""},null,null,null,""]
[{"$f":"IF($B55=\"\",\"\",SUBTOTAL(3,$B$8:B55))","v":""},null,null,null,""]
[{"$f":"IF($B56=\"\",\"\",SUBTOTAL(3,$B$8:B56))","v":""},null,null,null,""]
[{"$f":"IF($B57=\"\",\"\",SUBTOTAL(3,$B$8:B57))","v":""},null,null,null,""]
[{"$f":"IF($B58=\"\",\"\",SUBTOTAL(3,$B$8:B58))","v":""},null,null,null,""]
[{"$f":"IF($B59=\"\",\"\",SUBTOTAL(3,$B$8:B59))","v":""},null,null,null,""]
[{"$f":"IF($B60=\"\",\"\",SUBTOTAL(3,$B$8:B60))","v":""},null,null,null,""]
[{"$f":"IF($B61=\"\",\"\",SUBTOTAL(3,$B$8:B61))","v":""},null,null,null,""]
[{"$f":"IF($B62=\"\",\"\",SUBTOTAL(3,$B$8:B62))","v":""},null,null,null,""]
[{"$f":"IF($B63=\"\",\"\",SUBTOTAL(3,$B$8:B63))","v":""},null,null,null,""]
[{"$f":"IF($B64=\"\",\"\",SUBTOTAL(3,$B$8:B64))","v":""},null,null,null,""]
[{"$f":"IF($B65=\"\",\"\",SUBTOTAL(3,$B$8:B65))","v":""},null,null,null,""]
[{"$f":"IF($B66=\"\",\"\",SUBTOTAL(3,$B$8:B66))","v":""},null,null,null,""]
[{"$f":"IF($B67=\"\",\"\",SUBTOTAL(3,$B$8:B67))","v":""},null,null,null,""]
[{"$f":"IF($B68=\"\",\"\",SUBTOTAL(3,$B$8:B68))","v":""},null,null,null,""]
[{"$f":"IF($B69=\"\",\"\",SUBTOTAL(3,$B$8:B69))","v":""},null,null,null,""]
[{"$f":"IF($B70=\"\",\"\",SUBTOTAL(3,$B$8:B70))","v":""},null,null,null,""]
[{"$f":"IF($B71=\"\",\"\",SUBTOTAL(3,$B$8:B71))","v":""},null,null,null,""]
[{"$f":"IF($B72=\"\",\"\",SUBTOTAL(3,$B$8:B72))","v":""},null,null,null,""]
[{"$f":"IF($B73=\"\",\"\",SUBTOTAL(3,$B$8:B73))","v":""},null,null,null,""]
[{"$f":"IF($B74=\"\",\"\",SUBTOTAL(3,$B$8:B74))","v":""},null,null,null,""]
[{"$f":"IF($B75=\"\",\"\",SUBTOTAL(3,$B$8:B75))","v":""},null,null,null,""]
[{"$f":"IF($B76=\"\",\"\",SUBTOTAL(3,$B$8:B76))","v":""},null,null,null,""]
[{"$f":"IF($B77=\"\",\"\",SUBTOTAL(3,$B$8:B77))","v":""},null,null,null,""]
[{"$f":"IF($B78=\"\",\"\",SUBTOTAL(3,$B$8:B78))","v":""},null,null,null,""]
["Total :",null,{"$f":"SUM(C49:C78)","v":0}]
[]
["Guide Signature :…………………………………………………………………………………………………….."]
[]
[{"$f":"TODAY()","v":"2021-01-24"}]
[]
["Company :Safari Company"]
[]
["Guide Name: Omar Nagy"]
[]
["No.","Voucher no.","Cash",null,"Remarks"]
[{"$f":"IF($B90=\"\",\"\",SUBTOTAL(3,$B$8:B90))","v":""},null,null,null,""]
[{"$f":"IF($B91=\"\",\"\",SUBTOTAL(3,$B$8:B91))","v":""},null,null,null,""]
[{"$f":"IF($B92=\"\",\"\",SUBTOTAL(3,$B$8:B92))","v":""},null,null,null,""]
[{"$f":"IF($B93=\"\",\"\",SUBTOTAL(3,$B$8:B93))","v":""},null,null,null,""]
[{"$f":"IF($B94=\"\",\"\",SUBTOTAL(3,$B$8:B94))","v":""},null,null,null,""]
[{"$f":"IF($B95=\"\",\"\",SUBTOTAL(3,$B$8:B95))","v":""},null,null,null,""]
[{"$f":"IF($B96=\"\",\"\",SUBTOTAL(3,$B$8:B96))","v":""},null,null,null,""]
[{"$f":"IF($B97=\"\",\"\",SUBTOTAL(3,$B$8:B97))","v":""},null,null,null,""]
[{"$f":"IF($B98=\"\",\"\",SUBTOTAL(3,$B$8:B98))","v":""},null,null,null,""]
[{"$f":"IF($B99=\"\",\"\",SUBTOTAL(3,$B$8:B99))","v":""},null,null,null,""]
[{"$f":"IF($B100=\"\",\"\",SUBTOTAL(3,$B$8:B100))","v":""},null,null,null,""]
[{"$f":"IF($B101=\"\",\"\",SUBTOTAL(3,$B$8:B101))","v":""},null,null,null,""]
[{"$f":"IF($B102=\"\",\"\",SUBTOTAL(3,$B$8:B102))","v":""},null,null,null,""]
[{"$f":"IF($B103=\"\",\"\",SUBTOTAL(3,$B$8:B103))","v":""},null,null,null,""]
[{"$f":"IF($B104=\"\",\"\",SUBTOTAL(3,$B$8:B104))","v":""},null,null,null,""]
[{"$f":"IF($B105=\"\",\"\",SUBTOTAL(3,$B$8:B105))","v":""},null,null,null,""]
[{"$f":"IF($B106=\"\",\"\",SUBTOTAL(3,$B$8:B106))","v":""},null,null,null,""]
[{"$f":"IF($B107=\"\",\"\",SUBTOTAL(3,$B$8:B107))","v":""},null,null,null,""]
[{"$f":"IF($B108=\"\",\"\",SUBTOTAL(3,$B$8:B108))","v":""},null,null,null,""]
[{"$f":"IF($B109=\"\",\"\",SUBTOTAL(3,$B$8:B109))","v":""},null,null,null,""]
[{"$f":"IF($B110=\"\",\"\",SUBTOTAL(3,$B$8:B110))","v":""},null,null,null,""]
[{"$f":"IF($B111=\"\",\"\",SUBTOTAL(3,$B$8:B111))","v":""},null,null,null,""]
[{"$f":"IF($B112=\"\",\"\",SUBTOTAL(3,$B$8:B112))","v":""},null,null,null,""]
[{"$f":"IF($B113=\"\",\"\",SUBTOTAL(3,$B$8:B113))","v":""},null,null,null,""]
[{"$f":"IF($B114=\"\",\"\",SUBTOTAL(3,$B$8:B114))","v":""},null,null,null,""]
[{"$f":"IF($B115=\"\",\"\",SUBTOTAL(3,$B$8:B115))","v":""},null,null,null,""]
[{"$f":"IF($B116=\"\",\"\",SUBTOTAL(3,$B$8:B116))","v":""},null,null,null,""]
[{"$f":"IF($B117=\"\",\"\",SUBTOTAL(3,$B$8:B117))","v":""},null,null,null,""]
[{"$f":"IF($B118=\"\",\"\",SUBTOTAL(3,$B$8:B118))","v":""},null,null,null,""]
[{"$f":"IF($B119=\"\",\"\",SUBTOTAL(3,$B$8:B119))","v":""},null,null,null,""]
["Total :",null,{"$f":"SUM(C90:C119)","v":0}]
[]
["Guide Signature :…………………………………………………………………………………………………….."]

{"sheet":"Said Reda","index":3,"n_rows":122,"n_cols":5,"rows_kept":122,"cut":false,"hidden":false,"merged":[[119,0,119,1],[78,0,78,1],[82,0,82,1],[82,4,83,4],[41,0,41,1],[41,4,42,4],[37,0,37,1],[0,4,1,4]]}
[{"$f":"TODAY()","v":"2021-01-24"}]
[]
["Company :Safari Company"]
[]
["Guide Name: Said Reda"]
[]
["No.","Voucher no.","Cash",null,"Remarks"]
[{"$f":"IF($B8=\"\",\"\",SUBTOTAL(3,$B$8:B8))","v":1},1000055,195,null,0]
[{"$f":"IF($B9=\"\",\"\",SUBTOTAL(3,$B$8:B9))","v":2},1000057,60,null,0]
[{"$f":"IF($B10=\"\",\"\",SUBTOTAL(3,$B$8:B10))","v":3},1000058,70,null,0]
[{"$f":"IF($B11=\"\",\"\",SUBTOTAL(3,$B$8:B11))","v":4},1000059,0,null,"Shopping"]
[{"$f":"IF($B12=\"\",\"\",SUBTOTAL(3,$B$8:B12))","v":5},1000060,160,null,0]
[{"$f":"IF($B13=\"\",\"\",SUBTOTAL(3,$B$8:B13))","v":6},1000061,110,null,0]
[{"$f":"IF($B14=\"\",\"\",SUBTOTAL(3,$B$8:B14))","v":7},1000062,60,null,0]
[{"$f":"IF($B15=\"\",\"\",SUBTOTAL(3,$B$8:B15))","v":8},1000063,0,null,"Shopping"]
[{"$f":"IF($B16=\"\",\"\",SUBTOTAL(3,$B$8:B16))","v":9},1000064,80,null,0]
[{"$f":"IF($B17=\"\",\"\",SUBTOTAL(3,$B$8:B17))","v":10},1000065,60,null,0]
[{"$f":"IF($B18=\"\",\"\",SUBTOTAL(3,$B$8:B18))","v":11},1000066,75,null,0]
[{"$f":"IF($B19=\"\",\"\",SUBTOTAL(3,$B$8:B19))","v":12},1000067,0,null,"Shopping"]
[{"$f":"IF($B20=\"\",\"\",SUBTOTAL(3,$B$8:B20))","v":13},1000069,0,null,"Shopping"]
[{"$f":"IF($B21=\"\",\"\",SUBTOTAL(3,$B$8:B21))","v":14},1000070,0,null,"Shopping"]
[{"$f":"IF($B22=\"\",\"\",SUBTOTAL(3,$B$8:B22))","v":15},1000072,60,null,0]
[{"$f":"IF($B23=\"\",\"\",SUBTOTAL(3,$B$8:B23))","v":16},1000073,0,null,"Shopping"]
[{"$f":"IF($B24=\"\",\"\",SUBTOTAL(3,$B$8:B24))","v":17},1000074,0,null,"Shopping"]
[{"$f":"IF($B25=\"\",\"\",SUBTOTAL(3,$B$8:B25))","v":18},1000075,70,null,0]
[{"$f":"IF($B26=\"\",\"\",SUBTOTAL(3,$B$8:B26))","v":19},1000077,90,null,0]
[{"$f":"IF($B27=\"\",\"\",SUBTOTAL(3,$B$8:B27))","v":20},1000078,200,null,0]
[{"$f":"IF($B28=\"\",\"\",SUBTOTAL(3,$B$8:B28))","v":21},1000079,100,null,0]
[{"$f":"IF($B29=\"\",\"\",SUBTOTAL(3,$B$8:B29))","v":22},1000080,60,null,0]
[{"$f":"IF($B30=\"\",\"\",SUBTOTAL(3,$B$8:B30))","v":23},1000081,160,null,0]
[{"$f":"IF($B31=\"\",\"\",SUBTOTAL(3,$B$8:B31))","v":24},1000082,0,null,"Shopping"]
[{"$f":"IF($B32=\"\",\"\",SUBTOTAL(3,$B$8:B32))","v":25},1000083,80,null,0]
[{"$f":"IF($B33=\"\",\"\",SUBTOTAL(3,$B$8:B33))","v":""},null,null,null,""]
[{"$f":"IF($B34=\"\",\"\",SUBTOTAL(3,$B$8:B34))","v":""},null,null,null,""]
[{"$f":"IF($B35=\"\",\"\",SUBTOTAL(3,$B$8:B35))","v":""},null,null,null,""]
[{"$f":"IF($B36=\"\",\"\",SUBTOTAL(3,$B$8:B36))","v":""},null,null,null,""]
[{"$f":"IF($B37=\"\",\"\",SUBTOTAL(3,$B$8:B37))","v":""},null,null,null,""]
["Total :",null,{"$f":"SUM(C8:C37)","v":1690}]
[]
["Guide Signature :…………………………………………………………………………………………………….."]
[]
[{"$f":"TODAY()","v":"2021-01-24"}]
[]
["Company :Safari Company"]
[]
["Guide Name: Said Reda"]
[]
["No.","Voucher no.","Cash",null,"Remarks"]
[{"$f":"IF($B49=\"\",\"\",SUBTOTAL(3,$B$8:B49))","v":""},null,null,null,""]
[{"$f":"IF($B50=\"\",\"\",SUBTOTAL(3,$B$8:B50))","v":""},null,null,null,""]
[{"$f":"IF($B51=\"\",\"\",SUBTOTAL(3,$B$8:B51))","v":""},null,null,null,""]
[{"$f":"IF($B52=\"\",\"\",SUBTOTAL(3,$B$8:B52))","v":""},null,null,null,""]
[{"$f":"IF($B53=\"\",\"\",SUBTOTAL(3,$B$8:B53))","v":""},null,null,null,""]
[{"$f":"IF($B54=\"\",\"\",SUBTOTAL(3,$B$8:B54))","v":""},null,null,null,""]
[{"$f":"IF($B55=\"\",\"\",SUBTOTAL(3,$B$8:B55))","v":""},null,null,null,""]
[{"$f":"IF($B56=\"\",\"\",SUBTOTAL(3,$B$8:B56))","v":""},null,null,null,""]
[{"$f":"IF($B57=\"\",\"\",SUBTOTAL(3,$B$8:B57))","v":""},null,null,null,""]
[{"$f":"IF($B58=\"\",\"\",SUBTOTAL(3,$B$8:B58))","v":""},null,null,null,""]
[{"$f":"IF($B59=\"\",\"\",SUBTOTAL(3,$B$8:B59))","v":""},null,null,null,""]
[{"$f":"IF($B60=\"\",\"\",SUBTOTAL(3,$B$8:B60))","v":""},null,null,null,""]
[{"$f":"IF($B61=\"\",\"\",SUBTOTAL(3,$B$8:B61))","v":""},null,null,null,""]
[{"$f":"IF($B62=\"\",\"\",SUBTOTAL(3,$B$8:B62))","v":""},null,null,null,""]
[{"$f":"IF($B63=\"\",\"\",SUBTOTAL(3,$B$8:B63))","v":""},null,null,null,""]
[{"$f":"IF($B64=\"\",\"\",SUBTOTAL(3,$B$8:B64))","v":""},null,null,null,""]
[{"$f":"IF($B65=\"\",\"\",SUBTOTAL(3,$B$8:B65))","v":""},null,null,null,""]
[{"$f":"IF($B66=\"\",\"\",SUBTOTAL(3,$B$8:B66))","v":""},null,null,null,""]
[{"$f":"IF($B67=\"\",\"\",SUBTOTAL(3,$B$8:B67))","v":""},null,null,null,""]
[{"$f":"IF($B68=\"\",\"\",SUBTOTAL(3,$B$8:B68))","v":""},null,null,null,""]
[{"$f":"IF($B69=\"\",\"\",SUBTOTAL(3,$B$8:B69))","v":""},null,null,null,""]
[{"$f":"IF($B70=\"\",\"\",SUBTOTAL(3,$B$8:B70))","v":""},null,null,null,""]
[{"$f":"IF($B71=\"\",\"\",SUBTOTAL(3,$B$8:B71))","v":""},null,null,null,""]
[{"$f":"IF($B72=\"\",\"\",SUBTOTAL(3,$B$8:B72))","v":""},null,null,null,""]
[{"$f":"IF($B73=\"\",\"\",SUBTOTAL(3,$B$8:B73))","v":""},null,null,null,""]
[{"$f":"IF($B74=\"\",\"\",SUBTOTAL(3,$B$8:B74))","v":""},null,null,null,""]
[{"$f":"IF($B75=\"\",\"\",SUBTOTAL(3,$B$8:B75))","v":""},null,null,null,""]
[{"$f":"IF($B76=\"\",\"\",SUBTOTAL(3,$B$8:B76))","v":""},null,null,null,""]
[{"$f":"IF($B77=\"\",\"\",SUBTOTAL(3,$B$8:B77))","v":""},null,null,null,""]
[{"$f":"IF($B78=\"\",\"\",SUBTOTAL(3,$B$8:B78))","v":""},null,null,null,""]
["Total :",null,{"$f":"SUM(C49:C78)","v":0}]
[]
["Guide Signature :…………………………………………………………………………………………………….."]
[]
[{"$f":"TODAY()","v":"2021-01-24"}]
[]
["Company :Safari Company"]
[]
["Guide Name: Said Reda"]
[]
["No.","Voucher no.","Cash",null,"Remarks"]
[{"$f":"IF($B90=\"\",\"\",SUBTOTAL(3,$B$8:B90))","v":""},null,null,null,""]
[{"$f":"IF($B91=\"\",\"\",SUBTOTAL(3,$B$8:B91))","v":""},null,null,null,""]
[{"$f":"IF($B92=\"\",\"\",SUBTOTAL(3,$B$8:B92))","v":""},null,null,null,""]
[{"$f":"IF($B93=\"\",\"\",SUBTOTAL(3,$B$8:B93))","v":""},null,null,null,""]
[{"$f":"IF($B94=\"\",\"\",SUBTOTAL(3,$B$8:B94))","v":""},null,null,null,""]
[{"$f":"IF($B95=\"\",\"\",SUBTOTAL(3,$B$8:B95))","v":""},null,null,null,""]
[{"$f":"IF($B96=\"\",\"\",SUBTOTAL(3,$B$8:B96))","v":""},null,null,null,""]
[{"$f":"IF($B97=\"\",\"\",SUBTOTAL(3,$B$8:B97))","v":""},null,null,null,""]
[{"$f":"IF($B98=\"\",\"\",SUBTOTAL(3,$B$8:B98))","v":""},null,null,null,""]
[{"$f":"IF($B99=\"\",\"\",SUBTOTAL(3,$B$8:B99))","v":""},null,null,null,""]
[{"$f":"IF($B100=\"\",\"\",SUBTOTAL(3,$B$8:B100))","v":""},null,null,null,""]
[{"$f":"IF($B101=\"\",\"\",SUBTOTAL(3,$B$8:B101))","v":""},null,null,null,""]
[{"$f":"IF($B102=\"\",\"\",SUBTOTAL(3,$B$8:B102))","v":""},null,null,null,""]
[{"$f":"IF($B103=\"\",\"\",SUBTOTAL(3,$B$8:B103))","v":""},null,null,null,""]
[{"$f":"IF($B104=\"\",\"\",SUBTOTAL(3,$B$8:B104))","v":""},null,null,null,""]
[{"$f":"IF($B105=\"\",\"\",SUBTOTAL(3,$B$8:B105))","v":""},null,null,null,""]
[{"$f":"IF($B106=\"\",\"\",SUBTOTAL(3,$B$8:B106))","v":""},null,null,null,""]
[{"$f":"IF($B107=\"\",\"\",SUBTOTAL(3,$B$8:B107))","v":""},null,null,null,""]
[{"$f":"IF($B108=\"\",\"\",SUBTOTAL(3,$B$8:B108))","v":""},null,null,null,""]
[{"$f":"IF($B109=\"\",\"\",SUBTOTAL(3,$B$8:B109))","v":""},null,null,null,""]
[{"$f":"IF($B110=\"\",\"\",SUBTOTAL(3,$B$8:B110))","v":""},null,null,null,""]
[{"$f":"IF($B111=\"\",\"\",SUBTOTAL(3,$B$8:B111))","v":""},null,null,null,""]
[{"$f":"IF($B112=\"\",\"\",SUBTOTAL(3,$B$8:B112))","v":""},null,null,null,""]
[{"$f":"IF($B113=\"\",\"\",SUBTOTAL(3,$B$8:B113))","v":""},null,null,null,""]
[{"$f":"IF($B114=\"\",\"\",SUBTOTAL(3,$B$8:B114))","v":""},null,null,null,""]
[{"$f":"IF($B115=\"\",\"\",SUBTOTAL(3,$B$8:B115))","v":""},null,null,null,""]
[{"$f":"IF($B116=\"\",\"\",SUBTOTAL(3,$B$8:B116))","v":""},null,null,null,""]
[{"$f":"IF($B117=\"\",\"\",SUBTOTAL(3,$B$8:B117))","v":""},null,null,null,""]
[{"$f":"IF($B118=\"\",\"\",SUBTOTAL(3,$B$8:B118))","v":""},null,null,null,""]
[{"$f":"IF($B119=\"\",\"\",SUBTOTAL(3,$B$8:B119))","v":""},null,null,null,""]
["Total :",null,{"$f":"SUM(C90:C119)","v":0}]
[]
["Guide Signature :…………………………………………………………………………………………………….."]